Cogmind - Beta 9 @@@ ROGUE MODE // 2019.10.30 @ 21:49:45 Player: lsend Result: Establishing 0b11! Performance ------------- Evolutions (9) 4500 Regions Visited (31) 6200 Robots Destroyed (37) 185 Value Destroyed (723) 723 Prototype IDs (74) 1480 Alien Tech Used (7) 1400 Bonus (26744) 26744 TOTAL SCORE: 41232 Bonus ------- Pacifist 200 Follower Combat Kills 165 Aligned with FarCom 300 Met Data Miner 300 Met Zhirov 300 Met Warlord at Base 500 MAIN.C Attacked Warlord 500 Met Warlord at Research 2000 Scanned by Researcher 500 Met MAIN.C 5000 Destroyed MAIN.C Shell 5000 Destroyed MAIN.C 10000 Win 3000 Friendly Fire -1021 Cogmind --------- Core Integrity 1288/1600 Matter 275/300 Energy 947/950 System Corruption 0% Temperature Cool (3) Location 0b11 Command Parts ------- Power (2) Vortex Chain Reactor Propulsion (7) Impulse Thruster Flying Fortress v7 Improved Diametric Drive Utility (15) Large Storage Unit Advanced Signal Interpreter Nanoactuators Nanoactuators Experimental Powered Armor SHELL Armor Thermal Barrier Advanced Hacking Suite Weapon (2) Vibroblade Nanosword Inventory (10) Large Storage Unit Vortex Rifle Vortex Rifle Vortex Rifle Sigix Terminator Peak State ------------ Power Vortex Chain Reactor Propulsion Impulse Thruster Cooled Field Propulsion Drive Flying Fortress v7 Improved Diametric Drive Utility Large Storage Unit Advanced Signal Interpreter Experimental Targeting Computer Nanoactuators Nanoactuators Advanced Transmission Jammer Advanced ECM Suite Improved Power Shielding Improved Propulsion Shielding SHELL Armor Thermal Barrier Antimissile System Advanced Hacking Suite Weapon Vibroblade Nanosword Inventory Large Storage Unit Layered Heavy Armor Plating Assault Drone Bay Vortex Rifle Vortex Rifle Vortex Rifle Sigix Terminator [Rating: 197] Favorites ----------- Power Micro Fission Core Power Core Micro Fission Core Reactor Vortex Chain Reactor Propulsion Flying Fortress v7 Treads Light Treads Flight Unit Flying Fortress v7 Utility Advanced Signal Interpreter Device Advanced Transmission Jammer Storage Large Storage Unit Processor Advanced Signal Interpreter Hackware System Mapper Protection Improved Propulsion Shielding Weapon Phasing Sabre Energy Gun Vortex Rifle Launcher Heavy Missile Launcher Slashing Weapon Phasing Sabre Piercing Weapon Lance Build | -11 -10 -9 -9 -9 -8 -8 -7 -6 -6 -6 -6 -5 -5 -5 -5 -5 -4 -4 -4 -4 -4 -4 -4 -3 -3 -3 -2 -2 -2 -1 -1 ------- Run | Scr Mat Mat Min Exi Min Mat Fac Fac Low Low Dat Pro Fac Upp Upp Zhi Pro Fac Was Fac Upp Upp War Pro Res Tes Res Qua Sec Acc Com Slots Evolved 18 | . . 2 . . . 2 2 2 . . . . 2 . . . . 2 . . . . . . 2 . 2 . . 2 . Power 1 | . . . . . . . 1 . . . . . . . . . . . . . . . . . . . . . . . . Propulsion 4 | . . 1 . . . 1 . . . . . . 1 . . . . 1 . . . . . . . . . . . . . Utility 13 | . . 1 . . . 1 1 2 . . . . 1 . . . . 1 . . . . . . 2 . 2 . . 2 . Weapon . | . . . . . . . . . . . . . . . . . . . . . . . . . . . . . . . . Parts Attached 112 | 2 3 7 1 1 . 4 5 4 2 6 . 2 10 1 . 2 . 5 2 4 1 2 9 5 4 6 4 2 4 11 3 Power 8 | . . . . . . 1 1 1 . 1 . . 2 . . . . 1 . . . . 1 . . . . . . . . Engine . | . . . . . . . . . . . . . . . . . . . . . . . . . . . . . . . . Core 6 | . . . . . . 1 1 1 . 1 . . 2 . . . . . . . . . . . . . . . . . . Reactor 2 | . . . . . . . . . . . . . . . . . . 1 . . . . 1 . . . . . . . . Propulsion 21 | 2 1 3 . . . 2 2 . 1 1 . 1 2 . . . . 2 . . 1 . 1 1 . . . . . . 1 Treads 3 | 2 1 . . . . . . . . . . . . . . . . . . . . . . . . . . . . . . Leg . | . . . . . . . . . . . . . . . . . . . . . . . . . . . . . . . . Wheel . | . . . . . . . . . . . . . . . . . . . . . . . . . . . . . . . . Hover . | . . . . . . . . . . . . . . . . . . . . . . . . . . . . . . . . Flight 18 | . . 3 . . . 2 2 . 1 1 . 1 2 . . . . 2 . . 1 . 1 1 . . . . . . 1 Utility 59 | . 2 2 . 1 . 1 1 2 . 2 . . 5 . . 2 . 2 2 3 . 2 4 1 3 5 3 2 4 8 2 Device 23 | . . . . . . . . 2 . 1 . . 4 . . . . 1 1 2 . 2 3 . . 1 . . . 6 . Storage 6 | . . . . 1 . . . . . . . . . . . 1 . . . . . . 1 . 1 1 . 1 . . . Processor 6 | . . 2 . . . . 1 . . . . . . . . . . . . . . . . . . . 1 1 . 1 . Hackware 4 | . . . . . . . . . . . . . . . . . . 1 . . . . . . 2 . . . 1 . . Protection 20 | . 2 . . . . 1 . . . 1 . . 1 . . 1 . . 1 1 . . . 1 . 3 2 . 3 1 2 Artifact . | . . . . . . . . . . . . . . . . . . . . . . . . . . . . . . . . Weapon 24 | . . 2 1 . . . 1 1 1 2 . 1 1 1 . . . . . 1 . . 3 3 1 1 1 . . 3 . Energy Gun 2 | . . . . . . . . . . . . . . . . . . . . . . . 1 1 . . . . . . . Energy Cannon . | . . . . . . . . . . . . . . . . . . . . . . . . . . . . . . . . Ballistic Gun . | . . . . . . . . . . . . . . . . . . . . . . . . . . . . . . . . Ballistic Cannon . | . . . . . . . . . . . . . . . . . . . . . . . . . . . . . . . . Launcher 5 | . . 2 1 . . . . 1 . . . . 1 . . . . . . . . . . . . . . . . . . Special Weapon . | . . . . . . . . . . . . . . . . . . . . . . . . . . . . . . . . Impact Weapon . | . . . . . . . . . . . . . . . . . . . . . . . . . . . . . . . . Slashing Weapon 15 | . . . . . . . 1 . 1 2 . 1 . 1 . . . . . . . . 2 2 . 1 1 . . 3 . Piercing Weapon 2 | . . . . . . . . . . . . . . . . . . . . 1 . . . . 1 . . . . . . Special Melee Weapon . | . . . . . . . . . . . . . . . . . . . . . . . . . . . . . . . . Unidentified Prototypes 25 | . . . . . . . . . . 1 . . . . . 2 . 1 . 1 . . 5 . 2 3 1 . 6 2 1 Parts Lost 28 | . . . . . . . 1 1 . 4 . 4 1 . . . . 2 . 1 . 2 . . . . . . 4 2 6 Power 2 | . . . . . . . . . . 1 . 1 . . . . . . . . . . . . . . . . . . . Propulsion 7 | . . . . . . . 1 1 . 2 . 2 . . . . . . . . . . . . . . . . . . 1 Utility 18 | . . . . . . . . . . 1 . 1 1 . . . . 1 . 1 . 2 . . . . . . 4 2 5 Weapon 1 | . . . . . . . . . . . . . . . . . . 1 . . . . . . . . . . . . . Highest Loss Streak 5 | . . . . . . . 1 1 . 4 . 3 1 . . . . 1 . 1 . 1 . . . . . . 4 1 5 Average Slot Usage (%) 72 | . 33 54 69 66 66 78 89 87 80 73 66 51 71 82 82 81 82 81 69 70 73 72 76 76 74 72 68 69 62 69 67 Core 4 | . . . . . . 8 14 13 13 12 13 6 10 11 11 11 11 7 5 5 5 5 . . . . . . . . . Reactor 2 | . . . . . . . . . . . . . . . . . . 2 5 5 5 5 5 5 4 4 4 4 4 3 3 Flight 15 | . . 3 33 33 33 35 30 25 24 22 20 12 11 11 11 11 11 14 15 15 15 15 15 14 14 14 13 13 12 11 14 Device 12 | . . . . . . . . 7 6 2 . . 18 23 23 19 17 15 11 10 10 11 19 21 19 14 13 13 9 20 16 Storage 5 | . . . . 6 11 9 7 6 6 6 6 6 5 5 5 5 5 5 5 5 5 5 9 10 9 5 4 4 4 3 3 Processor 9 | . . 8 11 11 11 9 13 13 13 13 13 13 11 11 11 11 11 10 10 10 10 10 10 5 4 4 7 8 5 7 5 Hackware 2 | . . . . . . . . . . . . . . . . . . 4 . . . . . . 3 9 8 8 7 3 3 Protection 10 | . 5 22 22 15 11 17 15 13 13 13 13 9 2 5 5 8 11 10 10 9 10 7 5 9 9 8 12 13 12 11 10 Slashing Weapon 4 | . . . . . . . 6 6 2 3 . 2 5 5 5 5 5 5 5 5 5 5 4 5 4 4 4 4 4 5 7 Piercing Weapon 1 | . . . . . . . . . . . . . . . . . . . . 2 5 5 5 3 3 4 . . . . . Naked Turns . | . . . . . . . . . . . . . . . . . . . . . . . . . . . . . . . . Heaviest Build 118 | . 2 2 2 9 9 16 24 34 25 26 22 22 49 51 51 59 59 66 89 93 93 93 76 87 82 93 93 90 90 102 118 Greatest Support 119 | 3 3 6 6 12 12 18 30 30 31 32 23 72 81 81 81 81 81 93 93 93 94 94 94 93 93 93 93 99 103 103 119 Greatest Overweight (x) 4 | . . . . 1 . . . 1 . . . . . . . . . . . . . . . 4 . . . . . . . Average Overweight (x) . | . . . . . . . . . . . . . . . . . . . . . . . . . . . . . . . . Largest Inventory Capacity 14 | 4 4 4 4 8 8 8 8 8 8 8 8 8 8 8 8 10 10 10 10 10 10 10 14 14 14 14 10 10 10 10 10 Average Capacity 9 | 4 4 4 4 6 8 8 8 8 8 8 8 8 8 8 8 8 10 10 10 10 10 10 13 14 14 10 10 10 10 10 10 Most Carried 14 | . 3 4 4 8 8 8 8 8 8 8 7 7 6 7 7 10 10 10 10 10 10 10 14 14 14 14 10 10 10 10 10 Average Carried 8 | . 2 3 3 6 8 7 7 7 7 6 7 4 4 6 7 8 10 9 10 9 10 9 12 13 13 10 9 9 9 9 7 Final Capacity 10 | . . . . . . . . . . . . . . . . . . . . . . . . . . . . . . . 10 Final Carried 6 | . . . . . . . . . . . . . . . . . . . . . . . . . . . . . . . 6 Class Distribution -------------------- 39% | Mutant 20% | Hacker-Sprinter 14% | Infiltrator-Sprinter 11% | Infiltrator-Mutant 10% | Sprinter Dominant Class ---------------- Mutant | -10/Materials Mutant | -9/Materials Mutant | -9/Mines Mutant | -9/Exiles Mutant | -8/Mines Mutant | -8/Materials Sprinter | -7/Factory Sprinter | -6/Factory Sprinter | -6/Lower Caves Mutant | -6/Lower Caves Mutant | -6/Data Miner Mutant | -5/Proximity Caves Infiltrator-Mutant | -5/Factory Infiltrator-Mutant | -5/Upper Caves Infiltrator-Mutant | -5/Upper Caves Infiltrator-Mutant | -5/Zhirov Mutant | -4/Proximity Caves Mutant | -4/Factory Mutant | -4/Waste Mutant | -4/Factory Mutant | -4/Upper Caves Mutant | -4/Upper Caves Infiltrator-Sprinter | -4/Warlord Infiltrator-Sprinter | -3/Proximity Caves Hacker-Sprinter | -3/Research Hacker-Sprinter | -3/Testing Hacker-Sprinter | -2/Research Hacker-Sprinter | -2/Quarantine Hacker-Sprinter | -2/Section 7 Infiltrator-Sprinter | -1/Access Sprinter | -1/Command Resources | -11 -10 -9 -9 -9 -8 -8 -7 -6 -6 -6 -6 -5 -5 -5 -5 -5 -4 -4 -4 -4 -4 -4 -4 -3 -3 -3 -2 -2 -2 -1 -1 ----------- Run | Scr Mat Mat Min Exi Min Mat Fac Fac Low Low Dat Pro Fac Upp Upp Zhi Pro Fac Was Fac Upp Upp War Pro Res Tes Res Qua Sec Acc Com Matter Collected 1454 | 192 . 72 . . . . . . 25 86 . 92 168 98 . . 30 101 20 20 25 20 . 140 . 100 20 . 170 75 . Remotely . | . . . . . . . . . . . . . . . . . . . . . . . . . . . . . . . . Salvage Created 1855 | . . 22 28 . . . . 16 . 30 . . 77 . . . . 36 . 107 . . . 20 . 134 214 . 326 84 761 Parts 71 | . . 4 8 . . . . 2 . . . . 7 . . . . 8 . 4 . . . 4 . 5 4 . 14 5 6 Haulers Intercepted 8 | . . . . . . . . . . . . . . . . . . . . 1 . . . . . 1 2 . 3 1 . Recyclers Shooed 1 | . . . . . . . . . . . . . . . . . . 1 . . . . . . . . . . . . . Parts Field Recycled . | . . . . . . . . . . . . . . . . . . . . . . . . . . . . . . . . Retrieved Matter . | . . . . . . . . . . . . . . . . . . . . . . . . . . . . . . . . Parts Self-Destructed 47 | . . . . . . . . . . 1 . 4 . . . . . . . . . . 37 5 . . . . . . . Prevented . | . . . . . . . . . . . . . . . . . . . . . . . . . . . . . . . . Kills | -11 -10 -9 -9 -9 -8 -8 -7 -6 -6 -6 -6 -5 -5 -5 -5 -5 -4 -4 -4 -4 -4 -4 -4 -3 -3 -3 -2 -2 -2 -1 -1 ------- Run | Scr Mat Mat Min Exi Min Mat Fac Fac Low Low Dat Pro Fac Upp Upp Zhi Pro Fac Was Fac Upp Upp War Pro Res Tes Res Qua Sec Acc Com Combat Hostiles Destroyed 24 | . . 3 6 . . . . 2 . . . . 5 . . . . 5 . . . . . 1 . . . . . . 2 Melee 3 | . . . . . . . . . . . . . . . . . . . . . . . . 1 . . . . . . 2 AOE 21 | . . 3 6 . . . . 2 . . . . 5 . . . . 5 . . . . . . . . . . . . . Classes Destroyed 7 | . . 1 . . . . . . . 1 . . . . . . . 1 . 1 . . . 1 . 1 . . 1 . . Builder 1 | . . . . . . . . . . . . . . . . . . . . . . . . . . . . . 1 . . Tunneler 1 | . . . . . . . . . . . . . . . . . . 1 . . . . . . . . . . . . . Hauler 8 | . . . . . . . . . . . . . . . . . . . . 1 . . . . . 1 2 . 3 1 . Swarmer 21 | . . 3 6 . . . . 2 . . . . 5 . . . . 5 . . . . . . . . . . . . . Researcher 1 | . . . . . . . . . . . . . . . . . . . . . . . . . . 1 . . . . . Tinkerer 1 | . . . . . . . . . . 1 . . . . . . . . . . . . . . . . . . . . . Master Thief 1 | . . . . . . . . . . . . . . . . . . . . . . . . 1 . . . . . . . Best Kill Streak 6 | . . 3 6 . . . . 2 . . . . 5 . . . . 6 . 1 . . . 1 . 1 1 . 2 1 1 Combat Bots Only 6 | . . 3 6 . . . . 2 . . . . 5 . . . . 5 . . . . . 1 . . . . . . 1 Max Kills in Single Turn 5 | . . 3 2 . . . . 1 . 1 . . 5 . . . . 3 . 1 . . . 1 . 1 1 . 1 1 1 Gunslinging . | . . . . . . . . . . . . . . . . . . . . . . . . . . . . . . . . Exploded 5 | . . 3 2 . . . . 1 . . . . 5 . . . . 2 . . . . . . . . . . . . . Melee 1 | . . . . . . . . . . . . . . . . . . . . . . . . 1 . . . . . . 1 Uniques/NPCs Destroyed 1 | . . . . . . . . . . . . . . . . . . . . . . . . . . . . . . . 1 MAIN.C Shell (-1/Command) MAIN.C (-1/Command) Combat | -11 -10 -9 -9 -9 -8 -8 -7 -6 -6 -6 -6 -5 -5 -5 -5 -5 -4 -4 -4 -4 -4 -4 -4 -3 -3 -3 -2 -2 -2 -1 -1 -------- Run | Scr Mat Mat Min Exi Min Mat Fac Fac Low Low Dat Pro Fac Upp Upp Zhi Pro Fac Was Fac Upp Upp War Pro Res Tes Res Qua Sec Acc Com Damage Taken 8419 | . 102 222 84 . . 97 165 120 112 254 . 189 134 . 142 . 93 581 . 565 14 421 . 3 7 116 . 239 778 902 3079 Core 1045 | . 31 103 27 . . 29 62 55 60 68 . 40 13 . 11 . 14 73 . 12 . 30 . 3 7 . . . 95 106 206 Absorbed by Shields 721 | . . . . . . . . . . . . . 51 . 52 . 34 211 . 206 5 157 . 2 3 . . . . . . Core Remaining (%) 88 | 100 87 . . . 67 94 91 . . . . 73 . . . . 96 . . . . . . 89 . 99 . . 93 . 80 Volleys Fired 15 | . . 2 5 . . . . 3 . . . . 1 . . . . 4 . . . . . . . . . . . . . Largest 1 | . . 1 1 . . . . 1 . . . . 1 . . . . 1 . . . . . . . . . . . . . Hottest 39 | . . 33 30 . . . . 36 . . . . 39 . . . . 39 . . . . . . . . . . . . . Shots Fired 15 | . . 2 5 . . . . 3 . . . . 1 . . . . 4 . . . . . . . . . . . . . Gun . | . . . . . . . . . . . . . . . . . . . . . . . . . . . . . . . . Cannon . | . . . . . . . . . . . . . . . . . . . . . . . . . . . . . . . . Launcher 15 | . . 2 5 . . . . 3 . . . . 1 . . . . 4 . . . . . . . . . . . . . Special . | . . . . . . . . . . . . . . . . . . . . . . . . . . . . . . . . Kinetic . | . . . . . . . . . . . . . . . . . . . . . . . . . . . . . . . . Thermal . | . . . . . . . . . . . . . . . . . . . . . . . . . . . . . . . . Explosive 15 | . . 2 5 . . . . 3 . . . . 1 . . . . 4 . . . . . . . . . . . . . Electromagnetic . | . . . . . . . . . . . . . . . . . . . . . . . . . . . . . . . . Robot Hit Streak 4 | . . . 4 . . . . . . . . . 1 . . . . 1 . . . . . . . . . . . . . Robot Miss Streak 2 | . . . . . . . . 1 . . . . . . . . . 2 . . . . . . . . . . . . . Penetration Max . | . . . . . . . . . . . . . . . . . . . . . . . . . . . . . . . . Secondary Targets . | . . . . . . . . . . . . . . . . . . . . . . . . . . . . . . . . Shots Hit Robots 129 | . . . 4 . . . . . . 3 . . 1 . . . . 1 . 2 . . . 1 . 8 12 . 11 2 84 Core Hits 70 | . 3 3 6 . . . . 4 . 2 . . 5 . . . . 9 . 1 . . . 1 . 3 2 . 4 1 26 Critical Hits 5 | . . . . . . . . . . . . . . . . . . . . . . . . . . . 1 . 1 . 3 Critical Kills . | . . . . . . . . . . . . . . . . . . . . . . . . . . . . . . . . Critical Parts Destroyed 3 | . . . . . . . . . . . . . . . . . . . . . . . . . . . 1 . 1 . 1 Melee Attacks 303 | . . . . . . . 8 1 1 3 . . 2 2 . . 10 13 . 17 7 . 7 4 3 28 22 9 38 20 108 Impact . | . . . . . . . . . . . . . . . . . . . . . . . . . . . . . . . . Slashing 286 | . . . . . . . 8 1 1 3 . . 2 2 . . 10 13 . 16 7 . 6 4 3 14 21 9 38 20 108 Piercing 17 | . . . . . . . . . . . . . . . . . . . . 1 . . 1 . . 14 1 . . . . Sneak Attacks 15 | . . . . . . . . . . 3 . . . . . . . . . 1 . . . . . 2 4 . 4 1 . Combat Hostiles . | . . . . . . . . . . . . . . . . . . . . . . . . . . . . . . . . Follow-up Attacks 21 | . . . . . . . . . . . . . . . . . . . . . . . . . . 1 1 . . . 19 Damage Inflicted 9615 | . 9 176 398 . . . . 126 . 297 . . 352 . . . . 539 . 176 . . . 44 . 616 1029 . 1091 278 4484 Guns . | . . . . . . . . . . . . . . . . . . . . . . . . . . . . . . . . Cannons . | . . . . . . . . . . . . . . . . . . . . . . . . . . . . . . . . Explosions 1591 | . . 176 398 . . . . 126 . . . . 352 . . . . 539 . . . . . . . . . . . . . Melee 8015 | . . . . . . . . . . 297 . . . . . . . . . 176 . . . 44 . 616 1029 . 1091 278 4484 Ramming 9 | . 9 . . . . . . . . . . . . . . . . . . . . . . . . . . . . . . Kinetic . | . . . . . . . . . . . . . . . . . . . . . . . . . . . . . . . . Thermal . | . . . . . . . . . . . . . . . . . . . . . . . . . . . . . . . . Explosive 1591 | . . 176 398 . . . . 126 . . . . 352 . . . . 539 . . . . . . . . . . . . . Electromagnetic . | . . . . . . . . . . . . . . . . . . . . . . . . . . . . . . . . Impact . | . . . . . . . . . . . . . . . . . . . . . . . . . . . . . . . . Slashing 7628 | . . . . . . . . . . 297 . . . . . . . . . 176 . . . 44 . 349 909 . 1091 278 4484 Piercing 387 | . . . . . . . . . . . . . . . . . . . . . . . . . . 267 120 . . . . Highest Corruption 4 | . 1 . . . . . . . . . . . 1 1 1 1 2 2 2 2 2 2 4 . . . . . . . . Average Corruption 1 | . 1 . . . . . . . . . . . 1 1 1 1 1 1 2 2 2 2 2 . . . . . . . . Corruption Purged . | . . . . . . . . . . . . . . . . . . . . . . . . . . . . . . . . Effects 12 | . 1 . . . . . . . . . . . . . . 1 5 1 1 2 . 1 . . . . . . . . . Message Errors 8 | . . . . . . . . . . . . . . . . 1 4 1 . 1 . 1 . . . . . . . . . Heat Flow Errors 1 | . . . . . . . . . . . . . . . . . . . . 1 . . . . . . . . . . . Energy Discharges 2 | . 1 . . . . . . . . . . . . . . . . . 1 . . . . . . . . . . . . Data Loss (minor) 1 | . . . . . . . . . . . . . . . . . 1 . . . . . . . . . . . . . . Overload Shots . | . . . . . . . . . . . . . . . . . . . . . . . . . . . . . . . . Overflow Damage 444 | . . . . . . . . 4 . 42 . . . . . . . 74 . . . . . . . 124 4 . 38 128 30 Projectiles . | . . . . . . . . . . . . . . . . . . . . . . . . . . . . . . . . Explosions 78 | . . . . . . . . 4 . . . . . . . . . 74 . . . . . . . . . . . . . Melee 366 | . . . . . . . . . . 42 . . . . . . . . . . . . . . . 124 4 . 38 128 30 Knockbacks . | . . . . . . . . . . . . . . . . . . . . . . . . . . . . . . . . Impact . | . . . . . . . . . . . . . . . . . . . . . . . . . . . . . . . . Kinetic . | . . . . . . . . . . . . . . . . . . . . . . . . . . . . . . . . Secondary . | . . . . . . . . . . . . . . . . . . . . . . . . . . . . . . . . Self-Inflicted Damage 109 | . 4 . . . . . . 43 . . . . . . . . . 62 . . . . . . . . . . . . . Shots 3 | . . . . . . . . 1 . . . . . . . . . 2 . . . . . . . . . . . . . Rammed 5 | . 5 . . . . . . . . . . . . . . . . . . . . . . . . . . . . . . Targets Rammed 5 | . 5 . . . . . . . . . . . . . . . . . . . . . . . . . . . . . . Kicked . | . . . . . . . . . . . . . . . . . . . . . . . . . . . . . . . . Crushed . | . . . . . . . . . . . . . . . . . . . . . . . . . . . . . . . . Highest Temperature 267 | . . . . . . 6 25 4 6 12 . 1 8 . . . . . . 267 . 3 . . . . . . . . 13 Average Temperature 67 | . . . . . . 6 10 3 6 2 . 1 6 . . . . . . 207 . 3 . . . . . . . . 5 Received Heat Transfer 910 | . 54 63 . . . 45 63 . 20 45 . 27 . . 15 . 6 51 . 18 6 9 . . 8 30 . 27 117 18 288 Siege Activations . | . . . . . . . . . . . . . . . . . . . . . . . . . . . . . . . . Robots Corrupted . | . . . . . . . . . . . . . . . . . . . . . . . . . . . . . . . . Combat Hostiles . | . . . . . . . . . . . . . . . . . . . . . . . . . . . . . . . . Parts Fried . | . . . . . . . . . . . . . . . . . . . . . . . . . . . . . . . . Impact Corruptions . | . . . . . . . . . . . . . . . . . . . . . . . . . . . . . . . . Robots Melted . | . . . . . . . . . . . . . . . . . . . . . . . . . . . . . . . . Combat Hostiles . | . . . . . . . . . . . . . . . . . . . . . . . . . . . . . . . . Parts Melted . | . . . . . . . . . . . . . . . . . . . . . . . . . . . . . . . . Heat Transferred . | . . . . . . . . . . . . . . . . . . . . . . . . . . . . . . . . Parts Sabotaged . | . . . . . . . . . . . . . . . . . . . . . . . . . . . . . . . . Parts Stolen 2 | . . . . . . . . . . . . . . . . . . . . . . . . 2 . . . . . . . Parts Stripped . | . . . . . . . . . . . . . . . . . . . . . . . . . . . . . . . . Power Chain Reactions . | . . . . . . . . . . . . . . . . . . . . . . . . . . . . . . . . Missiles Intercepted . | . . . . . . . . . . . . . . . . . . . . . . . . . . . . . . . . Alert | -11 -10 -9 -9 -9 -8 -8 -7 -6 -6 -6 -6 -5 -5 -5 -5 -5 -4 -4 -4 -4 -4 -4 -4 -3 -3 -3 -2 -2 -2 -1 -1 ------- Run | Scr Mat Mat Min Exi Min Mat Fac Fac Low Low Dat Pro Fac Upp Upp Zhi Pro Fac Was Fac Upp Upp War Pro Res Tes Res Qua Sec Acc Com Peak Influence 623 | . 30 279 248 . 15 65 96 117 . . . . 623 . . . . 386 131 364 . . . . 187 249 264 368 527 412 247 Average Influence 212 | . 22 136 229 . 13 22 78 63 . . . . 306 . . . . 187 131 197 . . . . 127 190 184 262 374 306 221 Maximum Alert Level 2 | . . 1 1 . . . . . . . . . 2 . . . . 1 . 1 . . . . . 1 1 1 2 2 1 Low Security (%) 49 | . . . . . . . . . . . . . . . . . . . . . . . . . . . . . . . . Level 1 41 | . . . . . . . . . . . . . . . . . . . . . . . . . . . . . . . . Level 2 9 | . . . . . . . . . . . . . . . . . . . . . . . . . . . . . . . . Level 3 . | . . . . . . . . . . . . . . . . . . . . . . . . . . . . . . . . Level 4 . | . . . . . . . . . . . . . . . . . . . . . . . . . . . . . . . . Level 5 . | . . . . . . . . . . . . . . . . . . . . . . . . . . . . . . . . High Security . | . . . . . . . . . . . . . . . . . . . . . . . . . . . . . . . . Max Security . | . . . . . . . . . . . . . . . . . . . . . . . . . . . . . . . . Squads Dispatched 33 | . 1 1 . . . 1 1 . . 1 . . 3 . . . . 4 . 3 . . . . 4 3 3 2 3 3 . Investigation 4 | . . . . . . . . . . . . . . . . . . 2 . . . . . . 1 . . . . 1 . Extermination 8 | . . . . . . . 1 . . . . . 1 . . . . 1 . 1 . . . . . 1 . 1 1 1 . Reinforcement 18 | . 1 1 . . . 1 . . . . . . . . . . . 1 . 2 . . . . 3 2 3 1 2 1 . Assault 3 | . . . . . . . . . . 1 . . 2 . . . . . . . . . . . . . . . . . . Garrison . | . . . . . . . . . . . . . . . . . . . . . . . . . . . . . . . . Intercept . | . . . . . . . . . . . . . . . . . . . . . . . . . . . . . . . . Construction Impeded . | . . . . . . . . . . . . . . . . . . . . . . . . . . . . . . . . Haulers Reinforced 4 | . . . . . . . . . . . . . . . . . . . . 1 . . . . 1 . 1 . 1 . . Stealth | -11 -10 -9 -9 -9 -8 -8 -7 -6 -6 -6 -6 -5 -5 -5 -5 -5 -4 -4 -4 -4 -4 -4 -4 -3 -3 -3 -2 -2 -2 -1 -1 --------- Run | Scr Mat Mat Min Exi Min Mat Fac Fac Low Low Dat Pro Fac Upp Upp Zhi Pro Fac Was Fac Upp Upp War Pro Res Tes Res Qua Sec Acc Com Distress Signals 23 | . 1 1 . . . 1 . . . . . . . . . . . 1 . 2 . . . . 1 . 2 . . . 14 Communications Jammed 108 | . . . . . . . . . . . . . . . . . . . . 76 . . . . 3 2 2 . 7 17 1 Distress Signals 60 | . . . . . . . . . . . . . . . . . . . . 39 . . . . 3 2 2 . 7 6 1 Times Spotted 334 | . 6 19 8 . 3 9 13 4 7 15 . 9 15 . 9 . 8 43 . 29 2 6 . 2 8 12 11 16 26 39 15 Peak Tracking Total 15 | . 4 8 4 . 3 9 6 2 5 11 . 6 5 . 6 . 3 12 . 15 2 5 . 2 6 6 4 7 8 10 9 Tactical Retreats 70 | . . 4 . . . . 2 . 1 6 . 4 2 . 3 . 4 9 . 8 . 3 . . . 3 3 2 7 9 . Traps | -11 -10 -9 -9 -9 -8 -8 -7 -6 -6 -6 -6 -5 -5 -5 -5 -5 -4 -4 -4 -4 -4 -4 -4 -3 -3 -3 -2 -2 -2 -1 -1 ------- Run | Scr Mat Mat Min Exi Min Mat Fac Fac Low Low Dat Pro Fac Upp Upp Zhi Pro Fac Was Fac Upp Upp War Pro Res Tes Res Qua Sec Acc Com Traps Triggered 5 | . . . . . . . . . . . . . . . . . . 1 . 1 . . . . . 2 . . . 1 . Indirectly . | . . . . . . . . . . . . . . . . . . . . . . . . . . . . . . . . Trap Hack Attempts . | . . . . . . . . . . . . . . . . . . . . . . . . . . . . . . . . Triggered . | . . . . . . . . . . . . . . . . . . . . . . . . . . . . . . . . Disarmed . | . . . . . . . . . . . . . . . . . . . . . . . . . . . . . . . . Reprogrammed . | . . . . . . . . . . . . . . . . . . . . . . . . . . . . . . . . Reused . | . . . . . . . . . . . . . . . . . . . . . . . . . . . . . . . . Traps Extracted . | . . . . . . . . . . . . . . . . . . . . . . . . . . . . . . . . Installed . | . . . . . . . . . . . . . . . . . . . . . . . . . . . . . . . . Triggered 10 | . . . . . . . . . . . . . . 1 . . . . . . . 1 7 . . . . . . . 1 Machines | -11 -10 -9 -9 -9 -8 -8 -7 -6 -6 -6 -6 -5 -5 -5 -5 -5 -4 -4 -4 -4 -4 -4 -4 -3 -3 -3 -2 -2 -2 -1 -1 ---------- Run | Scr Mat Mat Min Exi Min Mat Fac Fac Low Low Dat Pro Fac Upp Upp Zhi Pro Fac Was Fac Upp Upp War Pro Res Tes Res Qua Sec Acc Com Machines Disabled 10 | . . 2 . . . . . . 1 . . . . . . . . . . . . . . . . 2 3 . 2 . . Max in Single Turn 2 | . . 2 . . . . . . 1 . . . . . . . . . . . . . . . . 1 1 . 1 . . Machines Sabotaged . | . . . . . . . . . . . . . . . . . . . . . . . . . . . . . . . . Garrisons Compromised . | . . . . . . . . . . . . . . . . . . . . . . . . . . . . . . . . Overloaded Fab Kills . | . . . . . . . . . . . . . . . . . . . . . . . . . . . . . . . . Fab Network Shutdowns 1 | . . . . . . . . . . . . . 1 . . . . . . . . . . . . . . . . . . Hacking | -11 -10 -9 -9 -9 -8 -8 -7 -6 -6 -6 -6 -5 -5 -5 -5 -5 -4 -4 -4 -4 -4 -4 -4 -3 -3 -3 -2 -2 -2 -1 -1 --------- Run | Scr Mat Mat Min Exi Min Mat Fac Fac Low Low Dat Pro Fac Upp Upp Zhi Pro Fac Was Fac Upp Upp War Pro Res Tes Res Qua Sec Acc Com Machines Accessed 99 | . . 5 . 2 . 1 6 4 . 1 4 . 4 . . 4 1 7 . 9 1 . 10 . 2 8 1 8 13 7 1 Terminals 55 | . . 5 . . . . 4 2 . . . . 1 . . . 1 4 . 3 1 . . . 2 7 1 6 12 5 1 Fabricators 9 | . . . . . . . 1 2 . . . . 2 . . . . 1 . 1 . . . . . 1 . . . 1 . Repair Stations . | . . . . . . . . . . . . . . . . . . . . . . . . . . . . . . . . Recycling Units 8 | . . . . . . 1 1 . . . . . 1 . . . . . . 4 . . . . . . . . . 1 . Scanalyzers 6 | . . . . . . . . . . . . . . . . . . 2 . 1 . . . . . . . 2 1 . . Garrison Access . | . . . . . . . . . . . . . . . . . . . . . . . . . . . . . . . . Total Hacks 245 | . . 10 . 5 . 2 11 7 . 1 26 . 9 . . 17 3 15 . 19 3 . 17 . 5 25 2 16 33 17 2 Successful 181 | . . 7 . 5 . . 5 2 . 1 26 . 6 . . 17 2 9 . 5 2 . 17 . 3 18 1 12 31 10 2 Failed 64 | . . 3 . . . 2 6 5 . . . . 3 . . . 1 6 . 14 1 . . . 2 7 1 4 2 7 . Catastrophic 12 | . . . . . . 1 2 . . . . . 1 . . . 1 . . 4 . . . . 1 . . . . 2 . Database Lockouts . | . . . . . . . . . . . . . . . . . . . . . . . . . . . . . . . . Manual 70 | . . 2 . 1 . . 2 3 . 1 . . 1 . . . 2 3 . 3 2 . 1 . 4 8 . 7 18 11 1 Terminals 137 | . . 10 . . . . 9 5 . . . . 2 . . . 3 9 . 7 3 . . . 5 23 2 13 31 13 2 Fabricators 17 | . . . . . . . 1 2 . . . . 5 . . . . 3 . 2 . . . . . 2 . . . 2 . Repair Stations . | . . . . . . . . . . . . . . . . . . . . . . . . . . . . . . . . Recycling Units 15 | . . . . . . 2 1 . . . . . 2 . . . . . . 8 . . . . . . . . . 2 . Scanalyzers 10 | . . . . . . . . . . . . . . . . . . 3 . 2 . . . . . . . 3 2 . . Garrison Access . | . . . . . . . . . . . . . . . . . . . . . . . . . . . . . . . . Terminal Hacks 123 | . . 6 . 5 . . 4 1 . 1 26 . 1 . . 17 1 4 . 2 1 . 17 . 2 12 1 6 14 1 1 Record 37 | . . . . 4 . . . . . . 11 . . . . 5 1 . . . 1 . 15 . . . . . . . . Part Schematic 11 | . . . . . . . . . . . 6 . . . . 4 . . . . . . . . . 1 . . . . . Robot Schematic 6 | . . . . . . . . . . . 6 . . . . . . . . . . . . . . . . . . . . Robot Analysis 4 | . . . . . . . . . . . . . . . . 4 . . . . . . . . . . . . . . . Prototype ID Bank 11 | . . . . . . . . . . . 3 . . . . 4 . 2 . . . . . . . 1 . . 1 . . Open Door 8 | . . . . . . . . . . 1 . . . . . . . . . . . . 2 . . 1 . . 4 . . Level Access Points 3 | . . 1 . . . . . . . . . . . . . . . . . . . . . . . 1 . . . . 1 Branch Access Points 5 | . . 1 . . . . . 1 . . . . . . . . . 1 . . . . . . 1 . . . . 1 . Emergency Access Points 8 | . . 1 . . . . 2 . . . . . . . . . . . . . . . . . 1 3 . . 1 . . Machine Index 1 | . . . . . . . . . . . . . . . . . . . . . . . . . . . . . 1 . . Terminal Index 1 | . . . . . . . . . . . . . . . . . . . . . . . . . . 1 . . . . . Alert Level 2 | . . 1 . . . . . . . . . . . . . . . . . . . . . . . 1 . . . . . Locate Traps 14 | . . . . . . . 2 . . . . . 1 . . . . 1 . 1 . . . . . 2 . 3 4 . . Zone Layout 11 | . . 2 . . . . . . . . . . . . . . . . . 1 . . . . . 1 1 3 3 . . EX-Prototype ID Bank 1 | . . . . 1 . . . . . . . . . . . . . . . . . . . . . . . . . . . Fabricator Hacks 12 | . . . . . . . 1 1 . . . . 4 . . . . 1 . 1 . . . . . 2 . . . 2 . Load Schematic 5 | . . . . . . . . . . . . . 1 . . . . 1 . 1 . . . . . 1 . . . 1 . Build 7 | . . . . . . . 1 1 . . . . 3 . . . . . . . . . . . . 1 . . . 1 . Repair Station Hacks . | . . . . . . . . . . . . . . . . . . . . . . . . . . . . . . . . Recycling Unit Hacks . | . . . . . . . . . . . . . . . . . . . . . . . . . . . . . . . . Scanalyzer 7 | . . . . . . . . . . . . . . . . . . 3 . . . . . . . . . 2 2 . . Insert Component 7 | . . . . . . . . . . . . . . . . . . 3 . . . . . . . . . 2 2 . . Garrison Access Hacks . | . . . . . . . . . . . . . . . . . . . . . . . . . . . . . . . . Unauthorized Hacks 86 | . . 2 . . . . 1 3 . . . . 2 . . . 2 2 . 4 3 . . . 2 8 . 8 30 17 2 Terminals 39 | . . 1 . . . . . . . . . . 1 . . . 1 1 . 2 1 . . . 1 4 . 4 15 7 1 Track 22 | . . . . . . . . . . . . . . . . . 1 . . 1 1 . . . . 2 . 3 11 3 . Assimilate 2 | . . . . . . . . . . . . . . . . . . . . . . . . . . . . 1 . 1 . Botnet 7 | . . . . . . . . . . . . . 1 . . . . 1 . . . . . . 1 1 . . 1 1 1 Disrupt 8 | . . 1 . . . . . . . . . . . . . . . . . 1 . . . . . 1 . . 3 2 . Fabricators . | . . . . . . . . . . . . . . . . . . . . . . . . . . . . . . . . Repair Stations . | . . . . . . . . . . . . . . . . . . . . . . . . . . . . . . . . Recycling Units . | . . . . . . . . . . . . . . . . . . . . . . . . . . . . . . . . Scanalyzers . | . . . . . . . . . . . . . . . . . . . . . . . . . . . . . . . . Garrison Access . | . . . . . . . . . . . . . . . . . . . . . . . . . . . . . . . . Data Cores Recovered . | . . . . . . . . . . . . . . . . . . . . . . . . . . . . . . . . Used . | . . . . . . . . . . . . . . . . . . . . . . . . . . . . . . . . Hacking Detections 65 | . . 4 . . . 1 5 3 . . . . 4 . . . 1 6 . 9 . . . . 1 6 1 8 9 6 1 Full Trace Events 4 | . . . . . . . . . . . . . . . . . . 2 . . . . . . 1 . . . . 1 . Feedback Events 1 | . . . . . . . . . . . . . . . . . . 1 . . . . . . . . . . . . . Corruption 1 | . . . . . . . . . . . . . . . . . . 1 . . . . . . . . . . . . . Feedback Blocked . | . . . . . . . . . . . . . . . . . . . . . . . . . . . . . . . . Robot Schematics Acquired 6 | . . . . . . . . . . . 6 . . . . . . . . . . . . . . . . . . . . Robots Built . | . . . . . . . . . . . . . . . . . . . . . . . . . . . . . . . . Matter . | . . . . . . . . . . . . . . . . . . . . . . . . . . . . . . . . Time . | . . . . . . . . . . . . . . . . . . . . . . . . . . . . . . . . Total Robot Build Rating . | . . . . . . . . . . . . . . . . . . . . . . . . . . . . . . . . Part Schematics Acquired 11 | . . . . . . . . . . . 6 . . . . 4 . . . . . . . . . 1 . . . . . Parts Built 6 | . . . . . . . 2 2 . . . . 1 . . . . . . . . . . . . . . . . 1 . Matter 1305 | . . . . . . . 212 190 . . . . 234 . . . . . . . . . . . . 318 . . . 351 . Time 442 | . . . . . . . 106 47 . . . . 58 . . . . . . . . . . . . 169 . . . 62 . Total Part Build Rating 36 | . . . . . . . 12 10 . . . . 7 . . . . . . . . . . . . . . . . 7 . Parts Repaired . | . . . . . . . . . . . . . . . . . . . . . . . . . . . . . . . . Time . | . . . . . . . . . . . . . . . . . . . . . . . . . . . . . . . . Parts Recycled . | . . . . . . . . . . . . . . . . . . . . . . . . . . . . . . . . Recycled Matter . | . . . . . . . . . . . . . . . . . . . . . . . . . . . . . . . . Retrieved Matter . | . . . . . . . . . . . . . . . . . . . . . . . . . . . . . . . . Retrieved Components . | . . . . . . . . . . . . . . . . . . . . . . . . . . . . . . . . Parts Scanalyzed . | . . . . . . . . . . . . . . . . . . . . . . . . . . . . . . . . Part Schematics Acquired . | . . . . . . . . . . . . . . . . . . . . . . . . . . . . . . . . Parts Damaged . | . . . . . . . . . . . . . . . . . . . . . . . . . . . . . . . . Bothacking | -11 -10 -9 -9 -9 -8 -8 -7 -6 -6 -6 -6 -5 -5 -5 -5 -5 -4 -4 -4 -4 -4 -4 -4 -3 -3 -3 -2 -2 -2 -1 -1 ------------ Run | Scr Mat Mat Min Exi Min Mat Fac Fac Low Low Dat Pro Fac Upp Upp Zhi Pro Fac Was Fac Upp Upp War Pro Res Tes Res Qua Sec Acc Com Used RIF Installer . | . . . . . . . . . . . . . . . . . . . . . . . . . . . . . . . . Robots Hacked . | . . . . . . . . . . . . . . . . . . . . . . . . . . . . . . . . Non-combat . | . . . . . . . . . . . . . . . . . . . . . . . . . . . . . . . . Combat . | . . . . . . . . . . . . . . . . . . . . . . . . . . . . . . . . Robot Hacks Applied . | . . . . . . . . . . . . . . . . . . . . . . . . . . . . . . . . Relay Couplers Released . | . . . . . . . . . . . . . . . . . . . . . . . . . . . . . . . . Robots Rewired 4 | . . . . . . . . . . . . . . . . . . . . . . . 4 . . . . . . . . Allies Hacked . | . . . . . . . . . . . . . . . . . . . . . . . . . . . . . . . . Hacks Repelled . | . . . . . . . . . . . . . . . . . . . . . . . . . . . . . . . . Allies | -11 -10 -9 -9 -9 -8 -8 -7 -6 -6 -6 -6 -5 -5 -5 -5 -5 -4 -4 -4 -4 -4 -4 -4 -3 -3 -3 -2 -2 -2 -1 -1 -------- Run | Scr Mat Mat Min Exi Min Mat Fac Fac Low Low Dat Pro Fac Upp Upp Zhi Pro Fac Was Fac Upp Upp War Pro Res Tes Res Qua Sec Acc Com Total Allies 7 | . . . . . . . . . . . . 1 . . . . . . . . . . 4 . . . . 1 . 1 . Largest Group 4 | . . . . . . . . . . . . 1 . . . . . . . . . . 4 4 2 . . 1 . 1 . Highest-Rated Group 200 | . . . . . . . . . . . . 94 . . . . . . . . . . 200 200 105 . . 26 . 40 . Highest-Rated Ally 94 | . . . . . . . . . . . . 94 . . . . . . . . . . 56 56 56 . . 26 . 40 . Total Orders . | . . . . . . . . . . . . . . . . . . . . . . . . . . . . . . . . Ally Attacks 50 | . . . . . . . . . . . . 5 . . . . . . . . . . . 16 4 . . . . . 25 Total Damage 1441 | . . . . . . . . . . . . 142 . . . . . . . . . . . 453 330 . . . . . 516 Kills 8 | . . . . . . . . . . . . 1 . . . . . . . . . . . 5 2 . . . . . . Allies Corrupted 2 | . . . . . . . . . . . . 1 . . . . . . . 1 . . . . . . . . . . . Allies Melted . | . . . . . . . . . . . . . . . . . . . . . . . . . . . . . . . . Intel | -11 -10 -9 -9 -9 -8 -8 -7 -6 -6 -6 -6 -5 -5 -5 -5 -5 -4 -4 -4 -4 -4 -4 -4 -3 -3 -3 -2 -2 -2 -1 -1 ------- Run | Scr Mat Mat Min Exi Min Mat Fac Fac Low Low Dat Pro Fac Upp Upp Zhi Pro Fac Was Fac Upp Upp War Pro Res Tes Res Qua Sec Acc Com Robot Analysis Total 4 | . . . . . . . . . . . . . . . . 4 . . . . . . . . . . . . . . . Derelict Logs Recovered 9 | . . . . . . . . . 1 . . 1 . 1 1 . 1 . . . 2 2 . . . . . . . . . Drone Launches 6 | . . . . . . . . . . . . . . . . . . . . 2 . . . 2 . . . . . . 2 Drone Recoveries . | . . . . . . . . . . . . . . . . . . . . . . . . . . . . . . . . Exploration | -11 -10 -9 -9 -9 -8 -8 -7 -6 -6 -6 -6 -5 -5 -5 -5 -5 -4 -4 -4 -4 -4 -4 -4 -3 -3 -3 -2 -2 -2 -1 -1 ------------- Run | Scr Mat Mat Min Exi Min Mat Fac Fac Low Low Dat Pro Fac Upp Upp Zhi Pro Fac Was Fac Upp Upp War Pro Res Tes Res Qua Sec Acc Com Turns Passed 6569 | 14 105 153 36 121 10 98 309 186 101 122 28 177 426 253 82 67 310 380 87 400 227 202 340 320 103 264 293 267 434 470 184 Spaces Moved 13788 | 23 173 270 61 214 26 263 555 508 300 288 81 421 778 586 196 132 595 910 236 888 595 569 579 219 274 529 717 745 994 830 233 Core 452 | 23 173 256 . . . . . . . . . . . . . . . . . . . . . . . . . . . . . Treads . | . . . . . . . . . . . . . . . . . . . . . . . . . . . . . . . . Legs . | . . . . . . . . . . . . . . . . . . . . . . . . . . . . . . . . Wheels . | . . . . . . . . . . . . . . . . . . . . . . . . . . . . . . . . Hover . | . . . . . . . . . . . . . . . . . . . . . . . . . . . . . . . . Flight 13336 | . . 14 61 214 26 263 555 508 300 288 81 421 778 586 196 132 595 910 236 888 595 569 579 219 274 529 717 745 994 830 233 Fastest Speed 26 | 50 50 40 40 37 37 34 31 31 31 31 34 34 42 42 42 42 42 35 35 35 35 35 32 32 32 32 32 28 32 32 26 Average Speed 35 | 50 50 49 40 54 37 34 31 33 31 32 34 41 42 42 42 42 42 36 35 35 35 35 32 33 32 32 32 31 32 32 29 Slowest Speed 297 | 50 50 50 40 120 37 37 34 111 34 34 34 50 42 42 42 42 42 42 35 35 35 35 35 297 32 32 32 32 32 32 34 Overloaded Moves 77 | . . . . . . . . . . . . . . . . . . . . . . . . . . . . 20 . . 57 Propulsion Burnouts 1 | . . . . . . . . . . . . . . . . . . . . . . . . . . . . . . . 1 Robots Hopped 109 | . . . 2 . . 11 8 3 . 8 . . 2 2 . . . 11 . 15 1 5 1 . 1 6 9 12 8 3 1 Cave-ins Triggered 1 | . . . . . . . . . . . . . . . . . . . . . . . . . . . . . 1 . . Exploration Rate (%) 45 | 3 22 34 23 59 18 35 20 18 42 45 69 61 23 63 49 60 73 29 95 32 72 82 92 38 13 59 27 83 80 23 14 Regions Visited 31 Branch Regions 19 Pre-discovered Areas 8 | . . . . 1 . . . . 1 . 1 . . 1 . 3 . . . . 1 . . . . . . . . . . Known Exits Taken 27 | . . 1 1 1 1 1 1 1 1 1 1 1 1 1 1 1 1 . . 1 1 1 1 1 1 1 1 1 1 1 . Unknown Exits Taken 2 | 1 1 . . . . . . . . . . . . . . . . . . . . . . . . . . . . . . Scrap Searched 18 | . . . . . . . . . 1 2 . 3 . 3 . . 1 . . . 3 2 . 3 . . . . . . . Spaces Dug 148 | . . 9 . . . . 8 1 . . . . 2 2 . . 10 12 . 14 7 . 6 . 3 7 5 9 24 16 13 Terrain Destroyed 266 | . . 19 29 . . . 8 26 . . . . 19 2 . . 10 49 . 14 7 . 6 . 3 7 5 9 24 16 13 Melee 139 | . . . . . . . 8 1 . . . . 2 2 . . 10 12 . 14 7 . 6 . 3 7 5 9 24 16 13 Projectile . | . . . . . . . . . . . . . . . . . . . . . . . . . . . . . . . . AOE 127 | . . 19 29 . . . . 25 . . . . 17 . . . . 37 . . . . . . . . . . . . . Actions | -11 -10 -9 -9 -9 -8 -8 -7 -6 -6 -6 -6 -5 -5 -5 -5 -5 -4 -4 -4 -4 -4 -4 -4 -3 -3 -3 -2 -2 -2 -1 -1 --------- Run | Scr Mat Mat Min Exi Min Mat Fac Fac Low Low Dat Pro Fac Upp Upp Zhi Pro Fac Was Fac Upp Upp War Pro Res Tes Res Qua Sec Acc Com Total 14974 | 24 189 286 65 217 25 258 670 517 302 304 80 423 867 586 195 142 639 925 240 936 602 566 719 459 283 585 739 748 1041 1019 323 Wait 711 | . 7 . . . . . 105 . . 11 . . 73 . . . 35 . . 21 . . 73 225 . . 3 . . 158 . Move 13549 | 22 172 269 56 213 25 242 538 501 299 271 80 420 773 581 195 131 594 888 235 857 592 558 576 218 271 517 702 722 977 824 230 Hop 98 | . . . 2 . . 9 8 3 . 8 . . 2 2 . . . 11 . 15 1 5 1 . 1 5 5 10 7 2 1 Pick Up 43 | . 2 2 . 2 . 2 3 . . . . . 6 . . 5 . 2 . 1 . . 5 1 3 3 1 2 2 1 . Fast Attach 70 | 2 2 6 . . . 1 3 3 1 2 . . 4 . . 2 . 1 2 4 . . 8 4 . 4 2 . 9 8 2 Attach 34 | . . 1 1 . . 2 1 1 1 4 . 2 4 . . . . 2 . . . 1 1 . 3 1 1 . 4 3 1 Detach 17 | . . 1 1 . . . . 2 . 4 . 1 . . . . . 1 . . . . 2 1 . . . . 2 2 . Swap 18 | . 1 . . 1 . 1 1 . . . . . 2 1 . 1 . 2 . . 1 1 . 1 1 1 1 2 . . . Drop 63 | . . 5 . 1 . 1 3 3 . 1 . . . . . 3 . 1 3 3 1 1 6 4 1 13 3 3 1 3 3 Fire 15 | . . 2 5 . . . . 3 . . . . 1 . . . . 4 . . . . . . . . . . . . . Melee 270 | . . . . . . . 8 1 1 3 . . 2 2 . . 10 13 . 16 7 . 6 4 3 23 21 9 38 18 85 Ram 5 | . 5 . . . . . . . . . . . . . . . . . . . . . . . . . . . . . . Kick . | . . . . . . . . . . . . . . . . . . . . . . . . . . . . . . . . Crush . | . . . . . . . . . . . . . . . . . . . . . . . . . . . . . . . . Escape Stasis 37 | . . . . . . . . . . . . . . . . . . . . 18 . . . . . 18 . . 1 . . Rewire 41 | . . . . . . . . . . . . . . . . . . . . . . . 41 . . . . . . . . Trap . | . . . . . . . . . . . . . . . . . . . . . . . . . . . . . . . . Miscellaneous 3 | . . . . . . . . . . . . . . . . . . . . 1 . . . 1 . . . . . . 1 Route ------- -11/Scrapyard -10/Materials -9/Materials (discovered 4 exits: *Mat x3 / *Min) -9/Mines (discovered 2 exits: *Mat / *Exi) -9/Exiles -8/Mines -8/Materials -7/Factory -6/Factory (discovered 3 exits: *Fac / *Low x2) -6/Lower Caves -6/Lower Caves (discovered 2 exits: *Fac / *Dat) -6/Data Miner -5/Proximity Caves -5/Factory (discovered 2 exits: *Fac / *Upp) -5/Upper Caves -5/Upper Caves -5/Zhirov -4/Proximity Caves -4/Factory (discovered 4 exits: Upp x2 / *Ext x2) -4/Waste -4/Factory (discovered 4 exits: *Res x2 / *Upp / *Ext) -4/Upper Caves -4/Upper Caves (discovered 2 exits: Res / *War) -4/Warlord -3/Proximity Caves -3/Research (discovered 4 exits: *Res / Arm / *Tes x2) -3/Testing -2/Research (discovered 2 exits: *Acc / *Qua) -2/Quarantine (discovered 2 exits: *Acc / *Sec) -2/Section 7 -1/Access -1/Command (discovered 2 exits: *Sur x2) 0b11 Command History --------- Turn | Location | Event 3 | -11/Scrapyard | Discovered new exit (range 15) 15 | -11/Scrapyard | Entered Materials 116 | -10/Materials | Discovered new exit (range 6) 120 | -10/Materials | Entered another Materials area 120 | -9/Materials | Evolved 2 slots: Propulsion x1, Utility x1 171 | -9/Materials | Identified exit to Materials 227 | -9/Materials | Identified exit to Mines 273 | -9/Materials | Entered Mines 289 | -9/Mines | Discovered exit to Materials (range 5) 305 | -9/Mines | Build established: Mutant 307 | -9/Mines | Deemed a non-threat by the Exiles lab entrance 307 | -9/Mines | Discovered new exit (range 5) 309 | -9/Mines | Identified exit to Exiles 309 | -9/Mines | Entered Exiles 319 | -9/Exiles | Met 8R-AWN 326 | -9/Exiles | Met EX-HEX 338 | -9/Exiles | Met EX-BIN 342 | -9/Exiles | Aligned with FarCom system 343 | -9/Exiles | Given EX-Vault access code 352 | -9/Exiles | Opened EX-Vault 356 | -9/Exiles | Found Flying Fortress v7 359 | -9/Exiles | Found Cloak of Protection 368 | -9/Exiles | Warned to stay clear of 0b10 Research branches 379 | -9/Exiles | Met EX-DEC 380 | -9/Exiles | Learned location of Zion (-7) 416 | -9/Exiles | Discovered new exit (range 12) 428 | -9/Exiles | Identified exit to Mines 430 | -9/Exiles | Stole two prototypes: Flying Fortress v7, Cloak of Protection 430 | -9/Exiles | Entered Mines 438 | -8/Mines | Discovered exit to Materials (range 6) 440 | -8/Mines | Entered Materials 440 | -8/Materials | Evolved 2 slots: Propulsion x1, Utility x1 531 | -8/Materials | Discovered new exit (range 11) 537 | -8/Materials | Identified exit to Factory 538 | -8/Materials | Entered Factory 538 | -7/Factory | Evolved 2 slots: Power x1, Utility x1 540 | -7/Factory | FarCom data flow suspended 684 | -7/Factory | Discovered new exit (range 12) 689 | -7/Factory | Identified exit to Factory 837 | -7/Factory | Fabricated Field Propulsion Drive (x2) 847 | -7/Factory | Entered another Factory area 847 | -6/Factory | Evolved 2 slots: Utility x2 861 | -6/Factory | Build established: Sprinter 918 | -6/Factory | Discovered new exit (range 4) 919 | -6/Factory | Identified exit to Factory 922 | -6/Factory | Fabricated Lgt. Fission Core? 961 | -6/Factory | Identified exit to Lower Caves 1033 | -6/Factory | Entered Lower Caves 1095 | -6/Lower Caves | Attacked by a delusional Derelict stockpiling Unaware 1121 | -6/Lower Caves | Discovered new exit (range 12) 1134 | -6/Lower Caves | Identified exit to Lower Caves 1134 | -6/Lower Caves | Entered another Lower Caves area 1138 | -6/Lower Caves | Discovered exit to Factory (range 3) 1160 | -6/Lower Caves | Attracted the attention of an 0b10 outpost 1197 | -6/Lower Caves | Spotted B-75 Beast 1207 | -6/Lower Caves | Encountered a Warlord checkpoint 1214 | -6/Lower Caves | Lost 4 parts (1p2n1u) 1220 | -6/Lower Caves | Discovered new exit (range 8) 1226 | -6/Lower Caves | Found Prototype Device 1226 | -6/Lower Caves | Identified Heart of Steel 1255 | -6/Lower Caves | Identified exit to Data Miner 1256 | -6/Lower Caves | Entered Data Miner 1256 | -6/Data Miner | Discovered new exit (range 6) 1263 | -6/Data Miner | Met Data Miner 1270 | -6/Data Miner | Learned location of Section 7 (-2) 1270 | -6/Data Miner | Acquired the access code to Warlord's prototype stash 1275 | -6/Data Miner | Received God Mode back door access code from Data Miner 1283 | -6/Data Miner | Identified exit to Proximity Caves 1284 | -6/Data Miner | Entered Proximity Caves 1305 | -5/Proximity Caves | Attracted the attention of an 0b10 checkpoint 1392 | -5/Proximity Caves | Lost 3 parts (2n1u) 1451 | -5/Proximity Caves | Discovered exit to Factory (range 4) 1457 | -5/Proximity Caves | Learned 4 Factory zone layouts 1461 | -5/Proximity Caves | Entered Factory 1461 | -5/Factory | Evolved 2 slots: Propulsion x1, Utility x1 1497 | -5/Factory | Build established: Mutant 1549 | -5/Factory | Fabricated Adv. Transmission Jammer (x1) 1664 | -5/Factory | Local fabrication network quarantined 1755 | -5/Factory | Discovered new exit (range 15) 1761 | -5/Factory | First assault squad dispatched 1762 | -5/Factory | Identified exit to Factory 1781 | -5/Factory | Incoming assault squad redirected 1816 | -5/Factory | Discovered new exit (range 8) 1819 | -5/Factory | Identified exit to Upper Caves 1849 | -5/Factory | Build established: Infiltrator-Mutant 1887 | -5/Factory | Entered Upper Caves 2136 | -5/Upper Caves | Discovered new exit (range 11) 2139 | -5/Upper Caves | Identified exit to Upper Caves 2140 | -5/Upper Caves | Entered another Upper Caves area 2142 | -5/Upper Caves | Attracted the attention of an 0b10 checkpoint 2153 | -5/Upper Caves | Spotted B-75 Beast 2202 | -5/Upper Caves | Learned Factory terminal intel 2217 | -5/Upper Caves | Discovered new exit (range 12) 2222 | -5/Upper Caves | Identified exit to Zhirov 2222 | -5/Upper Caves | Entered Zhirov 2222 | -5/Zhirov | Discovered new exit (range 3) 2230 | -5/Zhirov | Met Zhirov 2238 | -5/Zhirov | Learned location of Quarantine (-2) 2238 | -5/Zhirov | Learned location of Testing (-3) 2238 | -5/Zhirov | Learned location of Command (-1) 2242 | -5/Zhirov | Zhirov requested help retrieving the SGEMP Prototype 2249 | -5/Zhirov | Found Alien Artifact 2249 | -5/Zhirov | Identified Integrated Dissipator 2249 | -5/Zhirov | Installed Integrated Dissipator, increased core heat dissipation (+2%) 2270 | -5/Zhirov | Found Alien Artifact 2288 | -5/Zhirov | Identified exit to Proximity Caves 2289 | -5/Zhirov | Entered Proximity Caves 2523 | -4/Proximity Caves | Attracted the attention of an 0b10 checkpoint 2542 | -4/Proximity Caves | Build established: Mutant 2594 | -4/Proximity Caves | Discovered exit to Factory (range 12) 2599 | -4/Proximity Caves | Entered Factory 2599 | -4/Factory | Evolved 2 slots: Propulsion x1, Utility x1 2600 | -4/Factory | Loaded intel: 22 terminal locations 2627 | -4/Factory | Found Prototype Processor 2700 | -4/Factory | Discovered new exit (range 10) 2702 | -4/Factory | Identified exit to Upper Caves 2702 | -4/Factory | Identified exit to Extension 2759 | -4/Factory | Spotted B-86 Titan 2769 | -4/Factory | Identified Exp. Melee Analysis Suite 2769 | -4/Factory | Identified Transdimensional Reconstructor 2778 | -4/Factory | Incoming investigation squad redirected 2979 | -4/Factory | Manually triggered Chute Trap 2979 | -4/Factory | Sucked down chute 2979 | -4/Factory | Entered Waste 2979 | -4/Waste | The area was eerily silent 2992 | -4/Waste | Found Damper Plating 3049 | -4/Waste | Discovered new exit (range 12) 3066 | -4/Waste | Identified exit to Factory 3066 | -4/Waste | Entered Factory 3123 | -4/Factory | Found Prototype Hackware 3309 | -4/Factory | Discovered new exit (range 8) 3311 | -4/Factory | Identified exit to Research 3359 | -4/Factory | Discovered exit to Extension (range 16) 3437 | -4/Factory | Discovered exit to Research (range 12) 3460 | -4/Factory | Discovered exit to Upper Caves (range 14) 3466 | -4/Factory | Entered Upper Caves 3676 | -4/Upper Caves | Discovered new exit (range 11) 3687 | -4/Upper Caves | Learned location of 1 exit from Proximity Caves 3693 | -4/Upper Caves | Identified exit to Upper Caves 3693 | -4/Upper Caves | Entered another Upper Caves area 3693 | -4/Upper Caves | Discovered exit to Research (range 12) 3750 | -4/Upper Caves | Learned Research emergency access door positions 3780 | -4/Upper Caves | Learned Research garrison access intel 3888 | -4/Upper Caves | Discovered new exit (range 7) 3890 | -4/Upper Caves | Identified exit to Warlord 3895 | -4/Upper Caves | Entered Warlord 3907 | -4/Warlord | System corruption cleaned by Quarantine Array 3927 | -4/Warlord | Met Warlord 3931 | -4/Warlord | Opened Warlord's prototype stash 3933 | -4/Warlord | Found Prototype Reactor 3933 | -4/Warlord | Identified Vortex Chain Reactor 3940 | -4/Warlord | Found Prototype Device 3940 | -4/Warlord | Identified Exp. Cloaking Device 3943 | -4/Warlord | Found Prototype Hackware 3946 | -4/Warlord | Found Prototype Processor 3948 | -4/Warlord | Found Prototype Device 3948 | -4/Warlord | Identified Thermal Barrier 3952 | -4/Warlord | Warlord's base attacked by MAIN.C 4027 | -4/Warlord | Found Prototype Energy Gun 4027 | -4/Warlord | Identified Vortex Rifle 4031 | -4/Warlord | Found Vortex Rifle 4033 | -4/Warlord | Found Vortex Rifle 4164 | -4/Warlord | Opened side exit 4191 | -4/Warlord | Discovered new exit (range 9) 4193 | -4/Warlord | Identified exit to Proximity Caves 4235 | -4/Warlord | Entered Proximity Caves 4235 | -3/Proximity Caves | Accompanied by 4 allies 4435 | -3/Proximity Caves | Spotted 4V-5T9(f) 4442 | -3/Proximity Caves | Spotted 3Y-T5A(f) 4443 | -3/Proximity Caves | Encountered a Master Thief 4443 | -3/Proximity Caves | Flying Fortress v7 stolen by Master Thief 4444 | -3/Proximity Caves | Destroyed 3Y-T5A(f) 4446 | -3/Proximity Caves | Encountered a Master Thief 4450 | -3/Proximity Caves | Transdimensional Reconstructor stolen by Master Thief 4555 | -3/Proximity Caves | Entered Research 4555 | -3/Research | Accompanied by 4 allies 4555 | -3/Research | Evolved 2 slots: Utility x2 4557 | -3/Research | Loaded intel: 4 garrison access locations 4563 | -3/Research | Build established: Infiltrator-Sprinter 4567 | -3/Research | Found Antimissile System 4584 | -3/Research | Identified exit to Armory 4584 | -3/Research | Identified exit to Testing 4613 | -3/Research | Identified Exp. Hacking Suite 4614 | -3/Research | Identified System Mapper 4638 | -3/Research | Discovered new exit (range 16) 4658 | -3/Research | Entered Testing 4698 | -3/Testing | Scanned by Researcher 4714 | -3/Testing | Found Prototype Protection 4714 | -3/Testing | Identified SHELL Armor 4762 | -3/Testing | Found Molecular Scythe 4769 | -3/Testing | Identified exit to Research 4772 | -3/Testing | Found Prototype Device 4920 | -3/Testing | Build established: Hacker-Sprinter 4922 | -3/Testing | Entered Research 4922 | -2/Research | Warlord forces began assault on 0b10 4922 | -2/Research | Evolved 2 slots: Utility x2 4923 | -2/Research | Identified exit to Quarantine 5011 | -2/Research | Met up with Warlord 5015 | -2/Research | Found Prototype Processor 5032 | -2/Research | Research machine network offline 5037 | -2/Research | Borebot progress halted 5041 | -2/Research | Discovered new exit (range 21) 5051 | -2/Research | Spotted B-90 Cyclops 5055 | -2/Research | Spotted B-90 Cyclops 5105 | -2/Research | Borebot progress halted 5112 | -2/Research | Borebot progress halted 5141 | -2/Research | Borebot progress halted 5186 | -2/Research | Found Prototype Slashing Weapon 5186 | -2/Research | Identified Nanosword 5215 | -2/Research | Entered Quarantine 5224 | -2/Quarantine | Found Alien Artifact 5240 | -2/Quarantine | Identified Core Reset Matrix 5240 | -2/Quarantine | Identified Spectral Analyzer 5303 | -2/Quarantine | Discovered new exit (range 16) 5424 | -2/Quarantine | Found Alien Launcher 5459 | -2/Quarantine | Spotted Fortress 5480 | -2/Quarantine | Discovered new exit (range 6) 5481 | -2/Quarantine | Identified exit to Section 7 5482 | -2/Quarantine | Entered Section 7 5489 | -2/Section 7 | Spotted S7 Guard 5493 | -2/Section 7 | Found Alien Artifact 5493 | -2/Section 7 | Identified Core Membrane 5493 | -2/Section 7 | Installed Core Membrane, gained immunity to corruption 5523 | -2/Section 7 | Discovered new exit (range 14) 5541 | -2/Section 7 | Found Alien Artifact 5541 | -2/Section 7 | Identified Integrated Reactor 5541 | -2/Section 7 | Installed Integrated Reactor, increased core energy generation (+2%) 5577 | -2/Section 7 | Spotted Alpha 7 5579 | -2/Section 7 | Identified Sigix Terminator 5622 | -2/Section 7 | Found Prototype Processor 5656 | -2/Section 7 | Crushed by falling debris 5687 | -2/Section 7 | Lost 4 parts (4u) 5711 | -2/Section 7 | Found Transdimensional Reconstructor 5739 | -2/Section 7 | Spotted B-99 Colossus 5754 | -2/Section 7 | Found Alien Artifact 5754 | -2/Section 7 | Identified Core Expander 5754 | -2/Section 7 | Installed Core Expander, added new Propulsion slot 5765 | -2/Section 7 | Found Alien Artifact 5765 | -2/Section 7 | Identified LRC Boosters 5765 | -2/Section 7 | Installed LRC Boosters, increased mass support (+10) 5768 | -2/Section 7 | Found Alien Artifact 5768 | -2/Section 7 | Identified LRC Insulator 5768 | -2/Section 7 | Installed LRC Insulator, gained EM resistance (25) 5770 | -2/Section 7 | Found Alien Artifact 5770 | -2/Section 7 | Identified LRC Energy Well 5770 | -2/Section 7 | Installed LRC Energy Well, increased energy storage capacity (+250) 5786 | -2/Section 7 | Found Integrated Reactor 5786 | -2/Section 7 | Installed Integrated Reactor, increased core energy generation (+2%) 5788 | -2/Section 7 | Found Integrated Reactor 5788 | -2/Section 7 | Installed Integrated Reactor, increased core energy generation (+2%) 5790 | -2/Section 7 | Found Integrated Reactor 5790 | -2/Section 7 | Installed Integrated Reactor, increased core energy generation (+2%) 5850 | -2/Section 7 | Identified Exp. Targeting Computer 5916 | -2/Section 7 | Identified exit to Access 5916 | -2/Section 7 | Entered Access 5916 | -1/Access | Evolved 2 slots: Utility x2 5967 | -1/Access | Identified exit to Command 6061 | -1/Access | Found Prototype Slashing Weapon 6061 | -1/Access | Identified Vibroblade 6108 | -1/Access | Spotted B-99 Colossus 6280 | -1/Access | Build established: Infiltrator-Sprinter 6314 | -1/Access | Spotted B-99 Colossus 6356 | -1/Access | Fabricated Assault Drone Bay (x1) 6386 | -1/Access | Entered Command 6392 | -1/Command | Identified exit to Surface 6451 | -1/Command | Met MAIN.C 6465 | -1/Command | 0b10 Conduit disabled 6500 | -1/Command | Destroyed MAIN.C Shell 6502 | -1/Command | MAIN.C activated Command garrisons 6529 | -1/Command | Spotted M Guard 6529 | -1/Command | Spotted Combat Programmer 6532 | -1/Command | Spotted M Guard 6548 | -1/Command | Spotted Combat Programmer 6550 | -1/Command | Destroyed MAIN.C 6552 | -1/Command | Found Prototype Protection 6552 | -1/Command | Identified Exp. Powered Armor 6570 | *** | Establishing 0b11! Last Messages --------------- 06555_ Combat Programmer knocked back. 06556_ Slug penetrates M Guard. 06556_ EMDS Slug penetrates M Guard. 06558_ Slug penetrates M Guard. 06558_ EMDS Slug penetrates M Guard. 06558_ M Guard suffers critical hit. 06558_ Combat Programmer knocked back. 06559_ Cld. Field Propulsion Drive destroyed. 06559_ Cld. Field Propulsion Drive burned out. 06559_ Slug penetrates M Guard. 06560_ S-43 Plague destroyed. 06560_ EMDS Slug penetrates M Guard. 06560_ K-01 Serf collects debris. 06561_ M Guard system terminally corrupted. 06562_ EMDS Slug penetrates 0b10 Conduit. 06564_ EMDS Slug penetrates Reinforced Barrier. 06564_ EMDS Slug penetrates 0b10 Conduit. 06565_ K-01 Serf collects debris. 06566_ EMDS Slug penetrates Assault Drone. 06566_ Assault Drone destroyed. Map ----- +----------------------------------------------------+ | ?????????????????????????????????????????????????? | | ?????????????????????????????????????????????????? | | ?????????????????????????????????????????????????? | | ?????????????????????????????????????????????????? | | ?????????????????????????????????????????????????? | | ?????????????????????????????????????????????????? | | ?????????????????????????????????????????????????? | | ?????????????????????????????????????????????????? | | ?????????????????????????????????????????????????? | | ?????????????????????????????????????????????????? | | ?????????????????????????????????????????????????? | | ?????????????????????????????????????????????????? | | ?????????????????????????????????????????????????? | | ?????????????????????????????????????????????????? | | ?????????????????????????????????????????????????? | | ?????????????????????????????????????????????????? | | ?????????????????????????????????????????????????? | | ?????????????????????????????????????????????????? | | ?????????????????????????????????????????????????? | | ?????????????????????????????????????????????????? | | ?????????????????????????????????????????????????? | | ?????????????????????????????????????????????????? | | ?????????????????????????????????????????????????? | | ???????????????????????######????????????????????? | | ???????????????????????# #????????????????????? | | ???????????????????????# @ #????????????????????? | | ???????????????????????# #????????????????????? | | ???????????????????????### #????????????????????? | | ?????????????????????????# #????????????????????? | | ?????????????????????????# #????????????????????? | | ?????????????????????????# #????????????????????? | | ?????????????????????????# #????????????????????? | | ?????????????????????????# #????????????????????? | | ????????????????????????## ##???????????????????? | | ??????????# ##########! #???????????????????# | | ??????????? "" #???????????????????? | | ??????????? "T #???????????????????# | | ??????????# #######/## #???????????????????# | | ????????????????# ######?????????#?????????# | | ????????????????# #?????######## #?????????# | | ????????????????# ####### #?????????# | | ????????????????# + +?????????# | | ????????????????# ####### #?????????# | | ????????????????# #?????# ######?????????# | | ????????????????# #?????# #??????????????# | | ????????????????# = #?????# #??????????????# | | ????????????????# ! % #?????# #??????????????# | | ????????????????+ *%* #?????# #??????????????# | | ????????????????#######+####### ########???????# | | ????????????????????# ## ######### | +----------------------------------------------------+ Best States ------------- Heat Dissipation 72 Energy Generation 95 Energy Capacity 950 Matter Stores 300 Matter Capacity 600 Sight Range 24 Terrain Scan Range 24 Terrain Scan Density 110 ECM Strength 3 Jamming Range 16 Cloak Strength 5 Power Amplification 20 Armor Coverage 1500 Resistance: TH 50 Resistance: EM 90 Power Shielding 66 Propulsion Shielding 90 Point Defense Rating 240 Melee Speed Boost 50 Phase Shifting 10 Evasion (%) 73 Targeting Accuracy 12 Offensive Hacking 36 Item Schematics ----------------- Combat Drone Bay | -6/Data Miner | Free Lgt. Regenerative Plating | -6/Data Miner | Free Exp. Flexi-carbon Leg | -6/Data Miner | Free Triangulator | -6/Data Miner | Free Exp. Sensor Array | -6/Data Miner | Free Kinetic Spear | -6/Data Miner | Free Assault Drone Bay | -5/Zhirov | Free Exp. Heat Sink | -5/Zhirov | Free Exp. Optical Array | -5/Zhirov | Free Imp. Arc Thrower | -5/Zhirov | Free Med. Regenerative Plating | -3/Testing | Hacked Robot Schematics ------------------ S-27 Virus | -6/Data Miner | Free G-50 Soldier | -6/Data Miner | Free H-66 Slayer | -6/Data Miner | Free P-70 Sage | -6/Data Miner | Free I-36 Angel | -6/Data Miner | Free I-47 Archangel | -6/Data Miner | Free Fabricated ------------ Field Propulsion Drive | x2 | -7/Factory | Preloaded Lgt. Fission Core | x2 | -6/Factory | Preloaded Adv. Transmission Jammer | x1 | -5/Factory | Preloaded Assault Drone Bay | x1 | -1/Access Alien Tech Used ----------------- Integrated Dissipator Core Membrane Integrated Reactor Core Expander LRC Boosters LRC Insulator LRC Energy Well Achievements -------------- None Challenges ------------ None Game ------ Seed PlasmaRestorationMapper Manual? 0 Play Time 02:47:24 Cumulative 469.1 hours Start 2019.10.25 @ 18:56:53 End 2019.10.30 @ 21:49:45 Sessions 9 Manual Loads 0 Difficulty Rogue Special Mode None Game No. 390 Rogue 390 Adventurer 0 Explorer 0 Win Type 1 Total 128 Types 81/6/27/6/3/2/3 Lore% 98 Gallery% 95 Achievement% 83 Wizard Run 0 Options --------- ASCII 1 Keyboard 0 Movement Vi Keybinds 0 Fullscreen 0 Font 16/Smallcaps Map View 86x75 Tactical HUD 1 Map Filters NONE Filters NONE Steam X RUN: e20bf79d-2b6e-4265-ab89-c2ce18c3e83e